bitfinex-derivatives/quotes_BTCF0:USTF0_20251108
["timestamp","ask_amount","ask_price","bid_price","bid_amount"]
[1762586601815,0.57259527,102090.0,102080.0,0.00514631]
[1762586602016,0.5027568,102090.0,102080.0,0.00514631]
[1762586602219,0.59055416,102090.0,102080.0,0.00514631]
[1762586602907,0.5027568,102090.0,102080.0,0.00514631]
[1762586603107,0.59055416,102090.0,102080.0,0.00514631]
[1762586603408,0.59455416,102090.0,102080.0,0.00314631]
[1762586603608,0.03118,102070.0,102060.0,0.05708108]
[1762586603811,0.82535808,102070.0,102060.0,8.108e-05]
[1762586604013,0.7556,102070.0,102060.0,8.108e-05]
[1762586605212,0.80988452,102070.0,102060.0,8.108e-05]
[1762586605410,0.81188452,102070.0,102060.0,8.108e-05]
[1762586606317,0.80906452,102070.0,102060.0,0.05709108]
[1762586606705,0.80906452,102070.0,102060.0,0.01369108]
[1762586606905,0.03102,102060.0,102050.0,0.00014631]
[1762586607110,0.39182,102060.0,102050.0,0.00014631]
[1762586607306,0.4790176,102060.0,102050.0,0.00014631]
[1762586608019,0.47909868,102060.0,102050.0,0.00014631]
[1762586608818,0.46158612,102060.0,102050.0,0.00014631]
[1762586609117,0.55962172,102060.0,102050.0,0.00014631]
[1762586609313,0.03072,102030.0,102020.0,0.1541317]
[1762586609516,0.03080108,102030.0,102020.0,0.3533005]
[1762586609713,0.03080108,102030.0,102020.0,0.5149317]
[1762586609914,0.03080108,102030.0,102020.0,0.1541317]
[1762586610313,0.03080108,102030.0,102020.0,0.5149317]
[1762586610717,0.03080108,102030.0,102020.0,0.5229317]
[1762586611312,0.12886548,102030.0,102020.0,0.5229317]
[1762586611817,0.12886548,102030.0,102020.0,0.522934]
[1762586612022,0.16371014,102030.0,102020.0,0.522934]
[1762586612618,0.06564574,102030.0,102020.0,0.522934]
[1762586612819,0.16371014,102030.0,102020.0,0.162134]
[1762586613213,0.06564574,102030.0,102020.0,0.162134]
[1762586613408,0.06564574,102030.0,102020.0,0.522934]
[1762586613807,0.06564574,102030.0,102020.0,0.162134]
[1762586614719,0.06564574,102030.0,102020.0,0.522934]
[1762586614909,0.06564574,102030.0,102020.0,0.162134]
[1762586615416,0.48966548,102030.0,102020.0,0.06406]
[1762586618823,0.52451014,102030.0,102020.0,0.06406]
[1762586621022,0.57677714,102030.0,102020.0,0.06406]
[1762586621223,0.54475248,102030.0,102020.0,0.008]
[1762586623319,0.54193248,102030.0,102020.0,0.164764]
[1762586623520,0.52441203,102030.0,102020.0,0.164764]
[1762586623715,0.42634763,102030.0,102020.0,0.27762419]
[1762586623913,0.48966548,102030.0,102020.0,0.17955019]
[1762586624112,0.48966548,102030.0,102020.0,0.164764]
[1762586624317,0.48966548,102030.0,102020.0,0.138834]
[1762586624526,0.48966548,102030.0,102020.0,0.160764]
[1762586624918,0.48966548,102030.0,102020.0,0.156764]
[1762586626314,0.03080108,102030.0,102020.0,0.156764]
[1762586626518,0.12886548,102030.0,102020.0,0.517564]
[1762586626826,0.12886548,102030.0,102020.0,0.156764]
[1762586627028,0.03080108,102030.0,102020.0,0.156764]
[1762586627517,0.12886548,102030.0,102020.0,0.156764]
[1762586627921,0.03080108,102030.0,102020.0,0.517564]
[1762586628125,0.03080108,102030.0,102020.0,0.156764]
[1762586628522,0.12886548,102030.0,102020.0,0.156764]
[1762586629324,0.03080108,102030.0,102020.0,0.156764]
[1762586629621,8.108e-05,102030.0,102020.0,0.517564]
[1762586630427,0.03080108,102030.0,102020.0,0.517564]
[1762586631129,0.03080108,102030.0,102020.0,0.156764]
[1762586631629,0.01544108,102030.0,102020.0,0.156764]
[1762586632017,0.12886548,102030.0,102020.0,0.156764]
[1762586632330,0.16361203,102030.0,102020.0,0.156764]
[1762586632718,0.52441203,102030.0,102020.0,0.156764]
[1762586633128,0.52441203,102030.0,102020.0,0.05869]
[1762586633732,0.52441203,102030.0,102020.0,0.156764]
[1762586634229,0.57667903,102030.0,102020.0,0.156764]
[1762586634922,0.54193248,102030.0,102020.0,0.156764]
[1762586635530,0.48966548,102030.0,102020.0,0.05869]
[1762586635828,0.48966548,102030.0,102020.0,0.156764]
[1762586636730,0.54203164,102030.0,102020.0,0.05869]
[1762586636930,0.128794,102020.0,102010.0,0.1576173]
[1762586637131,0.21606926,102020.0,102010.0,0.1576173]
[1762586637323,0.1637041,102020.0,102010.0,0.1576173]
[1762586637535,0.11799526,102020.0,102010.0,0.1576173]
[1762586637829,0.0656301,102020.0,102010.0,0.35709292]
[1762586638423,0.0502701,102020.0,102010.0,0.28983895]
[1762586638829,0.0656301,102020.0,102010.0,0.29083895]
[1762586639034,0.0656301,102020.0,102010.0,0.29183895]
[1762586639531,0.5245041,102020.0,102010.0,0.01561]
[1762586639734,0.5245041,102020.0,102010.0,0.002]
[1762586639934,0.489594,102020.0,102010.0,0.002]
[1762586640827,0.489594,102020.0,102010.0,0.001]
[1762586641023,0.491594,102020.0,102010.0,0.001]
[1762586641228,0.54390959,102020.0,102010.0,0.02429]
[1762586641432,0.54390959,102020.0,102010.0,0.1586937]
[1762586641632,0.54390959,102020.0,102010.0,0.06061]
[1762586641833,0.54390959,102020.0,102010.0,0.1586937]
[1762586642037,0.54590959,102020.0,102010.0,0.1576937]
[1762586642234,0.54590959,102020.0,102010.0,0.05961]
[1762586642434,0.54590959,102020.0,102010.0,0.1576937]
[1762586643135,0.54590959,102020.0,102010.0,0.05961]
[1762586644433,0.54590959,102020.0,101980.0,0.1214025]
[1762586644434,0.1288229,101990.0,101980.0,0.1214025]
[1762586644634,0.42635938,101990.0,101980.0,0.1577225]
[1762586645031,0.42650642,102000.0,101990.0,0.1577129]
[1762586645329,0.03086704,102000.0,101990.0,0.42041]
[1762586645537,0.03098821,102000.0,101990.0,0.1577129]
[1762586645924,0.03098821,102000.0,101990.0,0.5185129]
[1762586646129,0.03098821,102000.0,101990.0,0.1577129]
[1762586646326,0.12908151,102000.0,101990.0,0.05961]
[1762586646533,0.03098821,102000.0,101990.0,0.1577129]
[1762586647230,0.12908151,102000.0,101990.0,0.0981029]
[1762586647538,0.1288229,101990.0,101980.0,0.05961]
[1762586647731,0.4896229,101990.0,101980.0,0.05961]
[1762586648128,0.03072,101990.0,101980.0,0.1577225]
[1762586648437,0.4896229,101990.0,101980.0,0.1577225]
[1762586648831,0.4896229,101990.0,101980.0,0.1617225]
[1762586649834,0.39152,101990.0,101980.0,0.1617225]
[1762586650242,0.39152,101990.0,101980.0,0.004]
[1762586650243,0.62477095,101990.0,101980.0,0.004]
[1762586650536,0.54198838,101990.0,101980.0,0.06361]
[1762586650736,0.52451064,101990.0,101980.0,0.06361]
[1762586650929,0.42640774,101990.0,101980.0,0.1617225]
[1762586651129,0.0001064,101990.0,101980.0,0.65474415]
[1762586651638,0.0001064,101990.0,101980.0,0.89986415]
[1762586651936,0.41109134,102020.0,102010.0,0.1440136]
[1762586652231,0.06580134,102020.0,102010.0,0.1440136]
[1762586652626,0.03102,102020.0,102010.0,0.1440136]
[1762586652831,0.06580134,102030.0,102020.0,0.157684]
[1762586653026,0.0658605,102030.0,102020.0,0.157684]
[1762586653232,0.5247249,102030.0,102020.0,0.05961]
[1762586653436,0.5247249,102030.0,102020.0,0.157684]
[1762586653631,0.129094,102020.0,102010.0,0.14415444]
[1762586653833,0.03102,102020.0,102010.0,0.14415444]
[1762586654031,0.03402,102020.0,102010.0,0.04607704]
[1762586654235,0.132094,102020.0,102010.0,0.14416074]
[1762586654535,0.492894,102020.0,102010.0,0.04607704]
[1762586654739,0.52767534,102020.0,102010.0,0.04607704]
[1762586654938,0.52967534,102020.0,102010.0,0.04607704]
[1762586655333,0.52967534,102020.0,102010.0,0.14416074]
[1762586656033,0.07080134,102020.0,102010.0,0.14416074]
[1762586656440,0.43160134,102020.0,102010.0,0.14416074]
[1762586656625,0.52967534,102020.0,102010.0,0.14416074]
[1762586656831,0.07080134,102020.0,102010.0,0.14416074]
[1762586657032,0.03602,102020.0,102010.0,0.14416074]
[1762586657235,0.494894,102020.0,102010.0,0.04607704]
[1762586657430,0.52967534,102020.0,102010.0,0.14416074]
[1762586657630,0.52967534,102020.0,102010.0,0.13520074]
[1762586657826,0.52967534,102020.0,102010.0,0.00014704]
[1762586658033,0.43160134,102020.0,102010.0,0.15784074]
[1762586658232,0.52967534,102020.0,102010.0,0.15784074]
[1762586659037,0.43160134,102020.0,102010.0,0.15784074]
[1762586659627,0.07080134,102020.0,102010.0,0.15784074]
[1762586659826,0.005,102020.0,102010.0,0.65086239]
[1762586660135,5.916e-05,102030.0,102020.0,0.157684]
[1762586660331,5.916e-05,102030.0,102020.0,0.65070565]
[1762586660839,5.916e-05,102030.0,102020.0,0.89574565]
[1762586661233,5.916e-05,102030.0,102020.0,0.65070565]
[1762586661438,0.00014704,102040.0,102030.0,0.1439944]
[1762586661727,0.05549134,102050.0,102040.0,0.1439848]
[1762586661932,0.17424654,102050.0,102040.0,0.27620645]
[1762586662738,0.1394652,102050.0,102040.0,0.27620645]
[1762586662943,0.04142,102050.0,102040.0,0.27620645]
[1762586663133,0.02071,102050.0,102040.0,0.27620645]
[1762586663539,0.04142,102050.0,102040.0,0.27620645]
[1762586664641,0.04142,102050.0,102040.0,0.1439848]
[1762586664842,0.04142,102050.0,102040.0,0.27620645]
[1762586665036,0.04242,102050.0,102040.0,0.1439848]
[1762586666537,0.001,102050.0,102040.0,0.63700645]
[1762586667632,0.04242,102050.0,102040.0,0.27620645]
[1762586671547,0.40322,102050.0,102040.0,0.02329]
[1762586671739,0.04142,102040.0,102030.0,0.14416144]
[1762586671938,0.40222,102040.0,102030.0,0.02314704]
[1762586672138,0.43700134,102040.0,102030.0,0.02314704]
[1762586672541,1.13747165,102040.0,102030.0,0.00014704]
[1762586672748,1.04003134,102040.0,102030.0,0.00014704]
[1762586673244,1.19034522,102040.0,102030.0,0.00114704]
[1762586673543,1.15556388,102040.0,102030.0,0.00214704]
[1762586674341,1.15856388,102040.0,102030.0,0.00014704]
[1762586674638,1.16156388,102040.0,102030.0,0.00014704]
[1762586676744,0.56156388,102040.0,102030.0,0.00014704]
[1762586677344,0.55853388,102040.0,102030.0,0.14416144]
[1762586677543,0.59326275,102040.0,102030.0,0.15753144]
[1762586677745,0.54100367,102040.0,102030.0,0.15753144]
[1762586677943,0.18020367,102040.0,102030.0,0.15753144]
[1762586678140,0.59326275,102040.0,102030.0,0.15753144]
[1762586678341,0.59326275,102040.0,102030.0,0.05946704]
[1762586678544,0.55853388,102040.0,102030.0,0.15753144]
[1762586678743,0.59327504,102040.0,102030.0,0.15753144]
[1762586679244,0.55853388,102040.0,102030.0,0.15753144]
[1762586679442,0.56580388,102040.0,102030.0,0.00014704]
[1762586680145,0.64576645,102040.0,102030.0,0.00014704]
[1762586680345,0.56569188,102040.0,102030.0,0.00014704]
[1762586686751,0.58323413,102040.0,102030.0,0.00014704]
[1762586688248,0.5135448,102040.0,102030.0,0.00014704]
[1762586688651,0.5062748,102040.0,102030.0,0.05751704]
[1762586690350,0.55843982,102040.0,102030.0,0.05751704]
[1762586690657,0.5062748,102040.0,102030.0,0.05751704]
[1762586690954,0.55844102,102040.0,102030.0,0.05751704]
[1762586691642,0.56571102,102040.0,102030.0,0.05751704]
[1762586691955,0.56571102,102040.0,102030.0,0.02134704]
[1762586692354,0.56571102,102040.0,102030.0,0.00014704]
[1762586692850,0.5135448,102040.0,102030.0,0.00014704]
[1762586694148,0.5135448,102040.0,102030.0,0.02134704]
[1762586694556,0.5657496,102040.0,102030.0,0.02134704]
[1762586694958,0.5657496,102040.0,102030.0,0.04411704]
[1762586695157,0.5062748,102040.0,102030.0,0.05779704]
[1762586700768,0.57596413,102040.0,102030.0,0.05779704]
[1762586701059,0.58323413,102040.0,102030.0,0.00014704]
[1762586701264,0.69606359,102040.0,102030.0,0.00014704]
[1762586702659,0.58323413,102040.0,102030.0,0.00014704]
[1762586706886,0.04142,102020.0,102010.0,0.05961]
[1762586707079,0.500294,102020.0,102010.0,0.05961]
[1762586707288,0.57740333,102020.0,102010.0,0.02332]
[1762586707585,0.507714,102020.0,102010.0,0.02332]
[1762586707785,0.868514,102020.0,102010.0,0.02332]
[1762586707993,0.1395036,102010.0,102000.0,0.05975704]
[1762586708181,0.55267328,102010.0,102000.0,0.05975704]
[1762586708377,0.04625,102000.0,101980.0,0.37448]
[1762586708590,0.04625,101980.0,101970.0,0.05961]
[1762586708787,0.47673933,101990.0,101980.0,0.1440425]
[1762586709081,0.47673933,101990.0,101980.0,0.1577225]
[1762586709082,0.0523569,101990.0,101980.0,0.1577225]
[1762586709286,0.08726579,101990.0,101980.0,0.1577225]
[1762586709483,0.5575098,101990.0,101980.0,0.06361]
[1762586709687,0.5575098,101990.0,101980.0,0.1617225]
[1762586710084,0.4594069,101990.0,101980.0,0.1617225]
[1762586710283,0.5575098,101990.0,101980.0,0.06361]
[1762586710484,0.59238004,101990.0,101980.0,0.1617225]
[1762586710686,0.59438004,101990.0,101980.0,0.06361]
[1762586710882,0.59438004,101990.0,101980.0,0.1577225]
[1762586711080,0.59638004,101990.0,101980.0,0.1577225]
[1762586711282,0.18322314,101990.0,101980.0,0.05961]
[1762586711486,0.59638004,101990.0,101980.0,0.05961]
[1762586711685,0.5615098,101990.0,101980.0,0.05961]
[1762586712489,0.5615098,101990.0,101980.0,0.1577225]
[1762586712697,0.4634069,101990.0,101980.0,0.1577225]
[1762586712896,0.13644326,101990.0,101980.0,0.1577225]
[1762586713088,0.18218926,101990.0,101980.0,0.1577225]
[1762586713787,0.18118926,101990.0,101980.0,0.1577225]
[1762586713987,0.03883636,101990.0,101980.0,0.1577225]
[1762586714182,0.04825,101990.0,101980.0,0.1577225]
[1762586714387,0.1463529,101990.0,101980.0,0.05961]
[1762586714587,0.18118926,101990.0,101980.0,0.05961]
[1762586715100,0.54198926,101990.0,101980.0,0.05961]
[1762586715289,0.55523926,101990.0,101980.0,0.04593]
[1762586715490,0.54198926,101990.0,101980.0,0.05961]
[1762586715796,0.54098926,101990.0,101980.0,0.1577225]
[1762586716099,0.54298926,101990.0,101980.0,0.1577225]
[1762586716393,0.54198926,101990.0,101980.0,0.1577225]
[1762586716595,0.54398926,101990.0,101980.0,0.1577225]
[1762586717193,0.1443625,101980.0,101970.0,0.1577321]
[1762586717494,0.53999886,101980.0,101970.0,0.05961]
[1762586717697,0.54701886,101980.0,101970.0,0.04593]
[1762586717992,0.5575194,101980.0,101970.0,0.05961]
[1762586718199,0.60205413,101980.0,101970.0,0.05961]
[1762586718397,0.60205413,101980.0,101970.0,0.02332]
[1762586718595,0.1443721,101970.0,101960.0,0.05961]
[1762586718893,0.53998058,101970.0,101960.0,0.05961]
[1762586719098,0.5051721,101970.0,101960.0,0.1577417]
[1762586719301,0.5051721,101970.0,101960.0,0.05961]
[1762586719798,0.5051721,101970.0,101960.0,0.1587417]
[1762586720200,0.5051721,101970.0,101960.0,0.06061]
[1762586720601,0.5051721,101970.0,101960.0,0.06161]
[1762586720897,0.5051721,101970.0,101960.0,0.1597417]
[1762586721096,0.40705,101970.0,101960.0,0.1597417]
[1762586721599,0.06765177,101980.0,101970.0,0.1577321]
[1762586721802,0.06765177,101980.0,101970.0,0.71801319]
[1762586722202,0.09093177,101980.0,101970.0,0.71801319]
[1762586722795,0.05892552,101980.0,101970.0,0.71801319]
[1762586723103,0.02411704,101980.0,101970.0,0.71801319]
[1762586723604,0.04739704,101980.0,101970.0,0.71801319]
[1762586724194,0.14550954,101980.0,101970.0,0.71801319]
[1762586725005,0.04739704,101980.0,101970.0,0.71801319]
[1762586726007,0.14550954,101980.0,101970.0,0.71801319]
[1762586726397,0.00114704,101980.0,101970.0,0.71801319]
[1762586727509,0.14507954,101980.0,101970.0,0.5185321]
[1762586727811,0.50587954,101980.0,101970.0,0.1577321]
[1762586728110,0.54068802,101980.0,101970.0,0.1577321]
[1762586729008,0.17988802,101980.0,101970.0,0.1577321]
[1762586729196,0.54068802,101980.0,101970.0,0.1577321]
[1762586729402,0.54068802,101980.0,101970.0,0.05961]
[1762586729799,0.24549492,101980.0,101970.0,0.04593]
[1762586730509,0.96709492,101980.0,101970.0,0.04593]
[1762586730809,0.96709492,101980.0,101950.0,0.027403]
[1762586730810,0.1439517,101960.0,101950.0,0.027403]
[1762586731013,0.53952754,101960.0,101950.0,0.061643]
[1762586731708,0.53952754,101960.0,101950.0,0.1597844]
[1762586731912,0.44139584,101960.0,101950.0,0.1597844]
[1762586732116,0.44139584,101960.0,101950.0,0.1617844]
[1762586732613,0.41811584,101960.0,101950.0,0.1617844]
[1762586732813,0.41811584,101960.0,101950.0,0.1637844]
[1762586733114,0.47027961,101960.0,101950.0,0.36326549]
[1762586733514,0.13275961,101960.0,101950.0,0.36326549]
[1762586733810,0.08059584,101960.0,101950.0,0.36326549]
[1762586734512,0.13275961,101960.0,101950.0,0.36326549]
[1762586735103,0.08059584,101960.0,101950.0,0.36326549]
[1762586735303,0.03477584,101960.0,101950.0,0.36326549]
[1762586735810,0.03477584,101960.0,101950.0,0.72406549]
[1762586736911,0.03477584,101960.0,101950.0,0.7697844]
[1762586737114,0.03477584,101960.0,101950.0,0.96926549]
[1762586737416,0.13290754,101960.0,101950.0,0.72406549]
[1762586737614,0.17872754,101960.0,101950.0,0.72406549]
[1762586738411,0.15544754,101960.0,101950.0,0.72406549]
[1762586738714,0.17872754,101960.0,101950.0,0.72406549]
[1762586740005,0.17872754,101960.0,101950.0,0.26512409]
[1762586740210,0.23089131,101960.0,101950.0,0.26512409]
[1762586740819,0.23089131,101960.0,101950.0,0.36326539]
[1762586741818,0.03477584,101960.0,101950.0,0.72406539]
[1762586742118,0.13290754,101960.0,101950.0,0.72406539]
[1762586742513,0.03477584,101960.0,101950.0,0.5245843]
[1762586742718,0.05687584,101960.0,101950.0,0.72406539]
[1762586743215,0.15500754,101960.0,101950.0,0.72406539]
[1762586743412,0.03477584,101960.0,101950.0,0.72406539]
[1762586743716,0.13290754,101960.0,101950.0,0.72406539]
[1762586744914,0.03477584,101960.0,101950.0,0.72406539]
[1762586745826,0.13290754,101960.0,101950.0,0.72406539]
[1762586746015,0.17794754,101960.0,101950.0,0.72406539]
[1762586746715,0.17794754,101960.0,101950.0,0.5245843]
[1762586746916,0.15500754,101960.0,101950.0,0.72406539]
[1762586747111,0.05687584,101960.0,101950.0,0.72406539]
[1762586747425,0.03477584,101960.0,101950.0,0.72406539]
[1762586748217,0.49369794,101970.0,101960.0,0.1568617]
[1762586748417,0.03477584,101970.0,101960.0,0.5176617]
[1762586748618,0.03487696,101970.0,101960.0,0.5176617]
[1762586749416,0.05697696,101970.0,101960.0,0.5186617]
[1762586749617,0.05697696,101970.0,101960.0,0.5196617]
[1762586749817,0.03487696,101970.0,101960.0,0.5196617]
[1762586750023,0.08718777,101980.0,101970.0,0.1568521]
[1762586750223,0.08718777,101980.0,101970.0,0.71713319]
[1762586750526,0.10928777,101980.0,101970.0,0.71713319]
[1762586750728,0.13222777,101980.0,101970.0,0.71713319]
[1762586751532,0.23034027,101980.0,101970.0,0.71713319]
[1762586752120,0.13322777,101980.0,101970.0,0.71713319]
[1762586753624,0.03587696,101980.0,101970.0,0.96229319]
[1762586753829,0.05218777,101990.0,101980.0,0.1568425]
[1762586754026,0.05218777,101990.0,101980.0,0.5176425]
[1762586754235,0.03487696,101990.0,101980.0,0.7627625]
[1762586754622,0.035024,102000.0,101990.0,0.1568329]
[1762586754927,0.035024,102000.0,101990.0,0.35631399]
[1762586755523,0.04465231,102000.0,101990.0,0.35631399]
[1762586755727,0.04465231,102000.0,101990.0,0.71711399]
[1762586755728,0.035024,102000.0,101990.0,0.71711399]
[1762586755921,0.04469402,102010.0,102000.0,0.1537332]
[1762586756126,0.07965696,102010.0,102000.0,0.5145332]
[1762586756730,0.08968637,102010.0,102000.0,0.5145332]
[1762586756932,0.03487696,102010.0,102000.0,0.5145332]
[1762586757123,0.05711696,102010.0,102000.0,0.1537332]
[1762586758028,0.19151056,102010.0,102000.0,0.05564]
[1762586758229,0.05855,102000.0,101990.0,0.15496364]
[1762586758527,0.19152016,102000.0,101990.0,0.04306704]
[1762586758722,0.55232016,102000.0,101990.0,0.00014704]
[1762586758923,0.5174432,102000.0,101990.0,0.00014704]
[1762586759326,0.5184432,102000.0,101990.0,0.00014704]
[1762586759533,0.5184432,102000.0,101990.0,0.00114704]
[1762586759922,0.5184432,102000.0,101990.0,0.12030994]
[1762586760124,0.5184432,102000.0,101990.0,0.11930994]
[1762586760325,0.5204432,102000.0,101990.0,0.11930994]
[1762586760522,0.5204432,102000.0,101990.0,0.15388994]
[1762586760825,0.5204432,102000.0,101990.0,0.14116994]
[1762586761026,0.5194432,102000.0,101990.0,0.14116994]
[1762586761223,0.5214432,102000.0,101990.0,0.11930994]
[1762586761424,0.59113253,102000.0,101990.0,0.00014704]
[1762586761625,0.59113253,102000.0,101990.0,0.05578704]
[1762586761826,0.59113253,102000.0,101990.0,0.04306704]
[1762586762225,0.59113253,102000.0,101990.0,0.14116994]
[1762586762532,0.04878,102000.0,101990.0,0.15388994]
[1762586762923,0.1468732,102000.0,101990.0,0.28620146]
[1762586763126,0.03879638,102000.0,101990.0,0.28620146]
[1762586763732,0.03879638,102000.0,101990.0,0.43580146]
[1762586764333,0.03879638,102000.0,101990.0,0.79660146]
[1762586764534,0.06701109,102010.0,102000.0,0.1537332]
[1762586764730,0.06701109,102010.0,102000.0,0.28604472]
[1762586765123,0.05703638,102010.0,102000.0,0.28604472]
[1762586765323,0.03479638,102010.0,102000.0,0.64684472]
[1762586766131,0.03679638,102010.0,102000.0,0.64684472]
[1762586766629,0.03494342,102020.0,102010.0,0.1537236]
[1762586766825,0.03494342,102020.0,102010.0,0.28603512]
[1762586767622,0.03494342,102020.0,102010.0,0.64683512]
[1762586767830,0.03494342,102020.0,102010.0,0.89191512]
[1762586767831,0.00014704,102020.0,102010.0,0.89191512]
[1762586768737,0.00014704,102020.0,102010.0,0.64683512]
[1762586770128,0.00014704,102020.0,102010.0,0.89191512]
[1762586770332,0.45007081,102040.0,102030.0,0.1533244]
[1762586770832,0.56189561,102040.0,102030.0,0.1533244]
[1762586771035,0.03479638,102040.0,102030.0,0.28563592]
[1762586771538,0.54828542,102050.0,102040.0,0.1536948]
[1762586771736,0.45024022,102050.0,102040.0,0.1536948]
[1762586772039,0.54828542,102050.0,102040.0,0.1536948]
[1762586772233,0.56205542,102050.0,102040.0,0.02106]
[1762586772738,0.56205542,102050.0,102040.0,0.04292]
[1762586773039,0.56605542,102050.0,102040.0,0.04292]
[1762586773537,0.56605542,102050.0,102040.0,0.1409748]
[1762586773840,0.52410709,102050.0,102040.0,0.1536948]
[1762586774040,0.47201022,102050.0,102040.0,0.1536948]
[1762586774227,0.45824022,102050.0,102040.0,0.1536948]
[1762586774434,0.44852342,102050.0,102040.0,0.28600632]
[1762586774638,0.54656862,102050.0,102040.0,0.28600632]
[1762586774936,0.54656862,102050.0,102040.0,0.1536948]
[1762586776325,0.56033862,102050.0,102040.0,0.05564]
[1762586776534,0.56033862,102050.0,102040.0,0.1536948]
[1762586777935,0.61243549,102050.0,102040.0,0.1536948]
[1762586780242,0.50062029,102050.0,102040.0,0.1536948]
[1762586780442,0.47808029,102050.0,102040.0,0.28600632]
[1762586780635,0.04294342,102050.0,102040.0,0.28600632]
[1762586780840,0.00814704,102050.0,102040.0,0.28600632]
[1762586782242,0.00414704,102050.0,102040.0,0.28800632]
[1762586782644,0.50777224,102050.0,102040.0,0.28800632]
[1762586782839,0.51754224,102050.0,102040.0,0.05764]
[1762586783044,0.55233862,102050.0,102040.0,0.1576948]
[1762586783242,0.55233862,102050.0,102040.0,0.05964]
[1762586783635,0.55233862,102050.0,102040.0,0.1576948]
[1762586783843,0.55233862,102050.0,102040.0,0.1556948]
[1762586785244,0.44052342,102050.0,102040.0,0.1556948]
[1762586785434,0.53856862,102050.0,102040.0,0.1536948]
[1762586785837,0.44052342,102050.0,102040.0,0.1536948]
[1762586786643,0.44052342,102050.0,102040.0,0.28600632]
[1762586786838,0.53856862,102050.0,102040.0,0.28600632]
[1762586787547,0.55131862,102050.0,102040.0,0.05564]
[1762586788246,0.55131862,102050.0,102040.0,0.1536948]
[1762586788843,0.44052342,102050.0,102040.0,0.1536948]
[1762586789142,0.53856862,102050.0,102040.0,0.1536948]
[1762586789545,0.53856862,102050.0,102040.0,0.28600632]
[1762586790743,0.44052342,102050.0,102040.0,0.28600632]
[1762586791445,0.39574342,102050.0,102040.0,0.28600632]
[1762586792039,0.41699342,102050.0,102040.0,0.28600632]
[1762586792240,0.46909029,102050.0,102040.0,0.28600632]
[1762586792740,0.03494342,102050.0,102040.0,0.28600632]
[1762586792940,0.02139704,102050.0,102040.0,0.28600632]
[1762586793250,0.05533704,102050.0,102040.0,0.64680632]
[1762586794246,0.09013342,102050.0,102040.0,0.64680632]
[1762586794448,0.07738342,102050.0,102040.0,0.68365238]
[1762586795349,0.03479638,102050.0,102040.0,0.68365238]
[1762586795643,0.17527198,102060.0,102050.0,0.1572752]
[1762586795852,0.17527198,102060.0,102050.0,0.47603278]
[1762586796147,0.07723638,102060.0,102050.0,0.83683278]
[1762586796350,0.07723638,102060.0,102050.0,0.47603278]
[1762586796848,0.07823638,102060.0,102050.0,0.47603278]
[1762586797148,0.07923638,102060.0,102050.0,0.83683278]
[1762586797450,0.07923638,102060.0,102050.0,0.47603278]
[1762586797843,0.03679638,102060.0,102050.0,0.47603278]
[1762586798043,0.05804638,102060.0,102050.0,0.83683278]
[1762586798246,0.05804638,102060.0,102050.0,0.47603278]
[1762586798439,0.05804638,102060.0,102050.0,0.83683278]
[1762586798647,0.05704638,102060.0,102050.0,0.83683278]
[1762586798841,0.03579638,102060.0,102050.0,0.83683278]
[1762586799254,0.03479638,102060.0,102050.0,0.83683278]
[1762586800250,0.08689325,102060.0,102050.0,0.83683278]
[1762586802560,0.05189325,102060.0,102050.0,0.93219278]
[1762586802864,0.21689647,102070.0,102060.0,0.1429256]
[1762586803049,0.57769647,102070.0,102060.0,0.31208318]
[1762586803251,0.11887047,102070.0,102060.0,0.31208318]
[1762586804061,0.21689647,102070.0,102060.0,0.31208318]
[1762586804259,0.21789647,102070.0,102060.0,0.31208318]
[1762586805354,0.20491647,102070.0,102060.0,0.31208318]
[1762586805558,0.21889647,102070.0,102060.0,0.31208318]
[1762586806756,0.57969647,102070.0,102060.0,0.31208318]
[1762586807653,0.57969647,102070.0,102060.0,0.25607879]
[1762586807858,0.57969647,102070.0,102060.0,0.37710439]
[1762586808058,0.57969647,102070.0,102060.0,0.27906879]
[1762586808259,0.57969647,102070.0,102060.0,0.37710439]
[1762586809461,0.57969647,102070.0,102060.0,0.46168318]
[1762586809964,0.57969647,102070.0,102060.0,0.2925256]
[1762586810263,0.48167047,102070.0,102060.0,0.46168318]
[1762586810566,0.46869047,102070.0,102060.0,0.46936318]
[1762586810756,0.57969647,102070.0,102060.0,0.46936318]
[1762586811063,0.57969647,102070.0,102060.0,0.46168318]
[1762586812354,0.57969647,102070.0,102060.0,0.31208318]
[1762586812556,0.57869647,102070.0,102060.0,0.31208318]
[1762586813364,0.52580322,102070.0,102060.0,0.31208318]
[1762586813960,0.52580322,102070.0,102060.0,0.21404758]
[1762586814160,0.52580322,102070.0,102060.0,0.31208318]
[1762586814354,0.52580322,102070.0,102060.0,0.10647879]
[1762586814558,0.52580322,102070.0,102060.0,0.08457879]
[1762586814956,0.63582134,102070.0,102060.0,0.08457879]
[1762586815158,0.05697,102060.0,102050.0,0.22652399]
[1762586815360,0.41777,102060.0,102050.0,0.22652399]
[1762586815559,0.41777,102060.0,102050.0,0.12847879]
[1762586816068,0.41777,102060.0,102050.0,0.22652399]
[1762586816268,0.41777,102060.0,102050.0,0.23052399]
[1762586816471,0.41777,102060.0,102050.0,0.13247879]
[1762586816768,0.41777,102060.0,102050.0,0.23052399]
[1762586817569,0.5158056,102060.0,102050.0,0.23052399]
[1762586819368,0.41777,102060.0,102050.0,0.47238278]
[1762586819567,0.04351,102060.0,102050.0,0.83318278]
[1762586820277,0.21172565,102070.0,102060.0,0.1195656]
[1762586820478,0.13592655,102070.0,102060.0,0.62314189]
[1762586820679,0.05325722,102070.0,102060.0,0.62314189]
[1762586821379,0.12294655,102070.0,102060.0,0.62314189]
[1762586821682,0.05325722,102070.0,102060.0,0.62314189]
[1762586822078,0.00014704,102070.0,102060.0,0.86810189]
[1762586822281,1.13e-06,102070.0,102060.0,0.86810189]
[1762586822679,1.13e-06,102070.0,102060.0,0.62314189]
[1762586822884,1.13e-06,102070.0,102060.0,0.89449459]
[1762586823088,1.13e-06,102070.0,102060.0,0.86810189]
[1762586823588,1.13e-06,102070.0,102060.0,0.87010189]
[1762586823786,1.13e-06,102070.0,102060.0,0.89649459]
[1762586823987,0.06586242,102090.0,102060.0,0.89649459]
[1762586823988,0.07368242,102090.0,102080.0,0.1544464]
[1762586824190,0.09591242,102090.0,102080.0,0.62797269]
[1762586825185,0.04351,102090.0,102080.0,0.62797269]
[1762586825687,0.09591242,102090.0,102080.0,0.62797269]
[1762586826083,0.04351,102090.0,102080.0,0.62797269]
[1762586827382,0.1415168,102090.0,102080.0,0.62797269]
[1762586828092,0.04351,102090.0,102080.0,0.5152464]
[1762586828389,0.04351,102090.0,102080.0,0.62797269]
[1762586828987,0.47031946,102100.0,102090.0,0.1419068]
[1762586829188,0.47031946,102100.0,102090.0,0.25463309]
[1762586829382,0.56831666,102100.0,102090.0,0.25463309]
[1762586829885,0.47031946,102100.0,102090.0,0.25463309]